[Event "Titled Tuesday Blitz November 15 Late 2022"]
[White "Pino Perez, Lazaro"]
[Black "Sonnenschein, Philipp"]
[WhiteFideId "3517055"]
[BlackFideId "16250877"]
[WhiteElo "2170"]
[BlackElo "2225"]
[Result "0-1"]
[Round "05"]
[TimeControl "180+1"]
[Date "2022.11.16"]
[WhiteClock "0:00:06"]
[BlackClock "0:00:03"]

1. d4 {[%clk 0:03:00]}  Nf6 {[%clk 0:02:59]} 2. Bf4 {[%clk 0:03:00]}  g6 {[%clk 0:02:58]} 3. e3 {[%clk 0:02:57]}  Bg7 {[%clk 0:02:58]} 4. Nf3 {[%clk 0:02:57]}  Nh5 {[%clk 0:02:58]} 5. Be5 {[%clk 0:02:56]}  f6 {[%clk 0:02:57]} 6. Bg3 {[%clk 0:02:56]}  Nxg3 {[%clk 0:02:58]} 7. hxg3 {[%clk 0:02:56]}  O-O {[%clk 0:02:56]} 8. e4 {[%clk 0:02:53]}  c5 {[%clk 0:02:50]} 9. dxc5 {[%clk 0:02:47]}  Na6 {[%clk 0:02:49]} 10. Bxa6 {[%clk 0:02:25]}  Qa5+ {[%clk 0:02:49]} 11. Nc3 {[%clk 0:02:21]}  Qxa6 {[%clk 0:02:48]} 12. Qd5+ {[%clk 0:02:13]}  e6 {[%clk 0:02:42]} 13. Qd6 {[%clk 0:02:11]}  Qxd6 {[%clk 0:02:29]} 14. cxd6 {[%clk 0:02:12]}  b6 {[%clk 0:02:26]} 15. O-O-O {[%clk 0:01:53]}  Bb7 {[%clk 0:02:26]} 16. Rhe1 {[%clk 0:01:36]}  Rac8 {[%clk 0:02:25]} 17. Nb5 {[%clk 0:01:21]}  Rc5 {[%clk 0:02:13]} 18. Nbd4 {[%clk 0:01:16]}  Rfc8 {[%clk 0:02:05]} 19. c3 {[%clk 0:01:12]}  e5 {[%clk 0:01:47]} 20. Nb3 {[%clk 0:01:09]}  R5c6 {[%clk 0:01:48]} 21. Rd3 {[%clk 0:01:02]}  Re8 {[%clk 0:01:43]} 22. Red1 {[%clk 0:00:48]}  Re6 {[%clk 0:01:39]} 23. Nh2 {[%clk 0:00:44]}  Bf8 {[%clk 0:01:36]} 24. f3 {[%clk 0:00:44]}  Rcxd6 {[%clk 0:01:28]} 25. Rxd6 {[%clk 0:00:44]}  Rxd6 {[%clk 0:01:29]} 26. Rxd6 {[%clk 0:00:44]}  Bxd6 {[%clk 0:01:29]} 27. Kd2 {[%clk 0:00:43]}  a5 {[%clk 0:01:24]} 28. Nc1 {[%clk 0:00:42]}  Ba6 {[%clk 0:01:23]} 29. Ng4 {[%clk 0:00:39]}  Kf7 {[%clk 0:01:21]} 30. Ne3 {[%clk 0:00:39]}  Ke6 {[%clk 0:01:18]} 31. Nd5 {[%clk 0:00:32]}  b5 {[%clk 0:01:09]} 32. a3 {[%clk 0:00:28]}  Bb7 {[%clk 0:01:04]} 33. Ne3 {[%clk 0:00:24]}  f5 {[%clk 0:01:01]} 34. Kd3 {[%clk 0:00:21]}  fxe4+ {[%clk 0:00:40]} 35. fxe4 {[%clk 0:00:22]}  Bc5 {[%clk 0:00:38]} 36. Nb3 {[%clk 0:00:21]}  Bb6 {[%clk 0:00:36]} 37. Nd2 {[%clk 0:00:21]}  Kf6 {[%clk 0:00:25]} 38. Nf3 {[%clk 0:00:16]}  d6 {[%clk 0:00:19]} 39. Ng4+ {[%clk 0:00:16]}  Ke6 {[%clk 0:00:19]} 40. Ng5+ {[%clk 0:00:14]}  Ke7 {[%clk 0:00:16]} 41. Nxh7 {[%clk 0:00:14]}  Bc8 {[%clk 0:00:15]} 42. Ne3 {[%clk 0:00:13]}  Be6 {[%clk 0:00:10]} 43. Ng5 {[%clk 0:00:12]}  Bg8 {[%clk 0:00:10]} 44. Nf3 {[%clk 0:00:12]}  Kf6 {[%clk 0:00:10]} 45. Nd5+ {[%clk 0:00:12]}  Bxd5 {[%clk 0:00:10]} 46. exd5 {[%clk 0:00:13]}  Kf5 {[%clk 0:00:10]} 47. Nh4+ {[%clk 0:00:12]}  Kf6 {[%clk 0:00:07]} 48. Ke4 {[%clk 0:00:11]}  Bf2 {[%clk 0:00:07]} 49. Nf3 {[%clk 0:00:09]}  Bxg3 {[%clk 0:00:06]} 50. Nd2 {[%clk 0:00:09]}  Bf4 {[%clk 0:00:06]} 51. Nb3 {[%clk 0:00:07]}  a4 {[%clk 0:00:05]} 52. Na1 {[%clk 0:00:08]}  Bc1 {[%clk 0:00:05]} 53. Nc2 {[%clk 0:00:08]}  Bxb2 {[%clk 0:00:05]} 54. Kd3 {[%clk 0:00:06]}  Kf5 {[%clk 0:00:05]} 55. c4 {[%clk 0:00:07]}  bxc4+ {[%clk 0:00:04]} 56. Kxc4 {[%clk 0:00:08]}  Ke4 {[%clk 0:00:04]} 57. Ne1 {[%clk 0:00:06]}  Bxa3 {[%clk 0:00:03]} 0-1


[Site "https://www.chess.com"]

[Event "Titled Tuesday Blitz November 15 Late 2022"]
[White "Prithu Gupta"]
[Black "Winterberg, Lukas"]
[WhiteFideId "46618546"]
[BlackFideId "24622702"]
[WhiteElo "2344"]
[BlackElo "2349"]
[Result "0-1"]
[Round "05"]
[TimeControl "180+1"]
[Date "2022.11.16"]
[WhiteClock "0:00:01"]
[BlackClock "0:00:14"]

1. d4 {[%clk 0:02:57]}  Nf6 {[%clk 0:02:55]} 2. c4 {[%clk 0:02:54]}  e6 {[%clk 0:02:53]} 3. Nc3 {[%clk 0:02:54]}  d5 {[%clk 0:02:53]} 4. cxd5 {[%clk 0:02:52]}  exd5 {[%clk 0:02:54]} 5. Bg5 {[%clk 0:02:53]}  c6 {[%clk 0:02:54]} 6. e3 {[%clk 0:02:53]}  h6 {[%clk 0:02:52]} 7. Bh4 {[%clk 0:02:52]}  Be7 {[%clk 0:02:53]} 8. Qc2 {[%clk 0:02:52]}  O-O {[%clk 0:02:54]} 9. Bd3 {[%clk 0:02:51]}  Re8 {[%clk 0:02:54]} 10. Nge2 {[%clk 0:02:50]}  a5 {[%clk 0:02:54]} 11. O-O {[%clk 0:02:50]}  Na6 {[%clk 0:02:55]} 12. a3 {[%clk 0:02:48]}  Nc7 {[%clk 0:02:54]} 13. f3 {[%clk 0:02:47]}  c5 {[%clk 0:02:55]} 14. Bf2 {[%clk 0:02:46]}  c4 {[%clk 0:02:54]} 15. Bf5 {[%clk 0:02:46]}  b5 {[%clk 0:02:55]} 16. Bxc8 {[%clk 0:02:43]}  Rxc8 {[%clk 0:02:55]} 17. e4 {[%clk 0:02:43]}  b4 {[%clk 0:02:55]} 18. axb4 {[%clk 0:02:33]}  axb4 {[%clk 0:02:56]} 19. Nxd5 {[%clk 0:02:33]}  Ncxd5 {[%clk 0:02:55]} 20. exd5 {[%clk 0:02:34]}  Nxd5 {[%clk 0:02:50]} 21. Ng3 {[%clk 0:02:08]}  b3 {[%clk 0:02:41]} 22. Qd1 {[%clk 0:01:55]}  Nf4 {[%clk 0:02:31]} 23. Ne4 {[%clk 0:01:48]}  Nd3 {[%clk 0:02:31]} 24. Qd2 {[%clk 0:01:46]}  f5 {[%clk 0:02:29]} 25. Nc3 {[%clk 0:01:33]}  Bf6 {[%clk 0:02:26]} 26. Nb5 {[%clk 0:01:10]}  Bg5 {[%clk 0:01:57]} 27. Qd1 {[%clk 0:01:04]}  Nxf2 {[%clk 0:01:52]} 28. Rxf2 {[%clk 0:01:00]}  Be3 {[%clk 0:01:51]} 29. Kf1 {[%clk 0:00:47]}  Bxf2 {[%clk 0:01:32]} 30. Kxf2 {[%clk 0:00:48]}  Qe7 {[%clk 0:01:21]} 31. Qd2 {[%clk 0:00:40]}  f4 {[%clk 0:01:17]} 32. Nc3 {[%clk 0:00:36]}  Qh4+ {[%clk 0:01:01]} 33. Kg1 {[%clk 0:00:34]}  Re3 {[%clk 0:01:01]} 34. Nd5 {[%clk 0:00:20]}  Rd3 {[%clk 0:01:02]} 35. Qe2 {[%clk 0:00:20]}  Kh8 {[%clk 0:00:55]} 36. Ne7 {[%clk 0:00:20]}  Qf6 {[%clk 0:00:45]} 37. Nxc8 {[%clk 0:00:18]}  Qxd4+ {[%clk 0:00:45]} 38. Kf1 {[%clk 0:00:15]}  Re3 {[%clk 0:00:37]} 39. Qd1 {[%clk 0:00:09]}  Qxb2 {[%clk 0:00:34]} 40. Ra8 {[%clk 0:00:07]}  Kh7 {[%clk 0:00:30]} 41. Nd6 {[%clk 0:00:06]}  Rd3 {[%clk 0:00:26]} 42. Qe1 {[%clk 0:00:04]}  Rxd6 {[%clk 0:00:22]} 43. Qe4+ {[%clk 0:00:04]}  Rg6 {[%clk 0:00:22]} 44. Qxc4 {[%clk 0:00:01]}  Qb1+ {[%clk 0:00:19]} 45. Kf2 {[%clk 0:00:01]}  Rd6 {[%clk 0:00:14]} 0-1


[Site "https://www.chess.com"]

[Event "Titled Tuesday Blitz November 15 Late 2022"]
[White "Prohorov, Olexandr"]
[Black "Marcolino, Daniel Mattos"]
[WhiteFideId "14105578"]
[BlackFideId "2106841"]
[WhiteElo "1993"]
[BlackElo "2092"]
[Result "1-0"]
[Round "05"]
[TimeControl "180+1"]
[Date "2022.11.16"]
[WhiteClock "0:01:28"]
[BlackClock "0:00:07"]

1. c4 {[%clk 0:02:57]}  e6 {[%clk 0:02:59]} 2. Nc3 {[%clk 0:02:57]}  Nf6 {[%clk 0:02:58]} 3. Nf3 {[%clk 0:02:57]}  d5 {[%clk 0:02:58]} 4. d4 {[%clk 0:02:57]}  Bb4 {[%clk 0:02:56]} 5. Qa4+ {[%clk 0:02:57]}  Nc6 {[%clk 0:02:56]} 6. Ne5 {[%clk 0:02:56]}  Bd7 {[%clk 0:02:27]} 7. Nxd7 {[%clk 0:02:56]}  Qxd7 {[%clk 0:02:17]} 8. e3 {[%clk 0:02:56]}  O-O {[%clk 0:02:13]} 9. Bd2 {[%clk 0:02:54]}  a6 {[%clk 0:02:01]} 10. cxd5 {[%clk 0:02:52]}  exd5 {[%clk 0:02:01]} 11. Bd3 {[%clk 0:02:51]}  Bd6 {[%clk 0:01:53]} 12. O-O {[%clk 0:02:41]}  Rfe8 {[%clk 0:01:48]} 13. f3 {[%clk 0:02:40]}  Rad8 {[%clk 0:01:43]} 14. Rae1 {[%clk 0:02:39]}  Nb4 {[%clk 0:01:37]} 15. Qxd7 {[%clk 0:02:36]}  Rxd7 {[%clk 0:01:38]} 16. Bb1 {[%clk 0:02:36]}  c5 {[%clk 0:01:34]} 17. Na4 {[%clk 0:02:25]}  cxd4 {[%clk 0:01:31]} 18. exd4 {[%clk 0:02:25]}  Rde7 {[%clk 0:01:20]} 19. Nc5 {[%clk 0:02:17]}  Nc6 {[%clk 0:01:03]} 20. Rxe7 {[%clk 0:02:08]}  Rxe7 {[%clk 0:01:03]} 21. Bc3 {[%clk 0:02:09]}  Bxc5 {[%clk 0:00:13]} 22. dxc5 {[%clk 0:02:08]}  d4 {[%clk 0:00:13]} 23. Bd2 {[%clk 0:02:04]}  a5 {[%clk 0:00:13]} 24. Kf2 {[%clk 0:02:02]}  Nd7 {[%clk 0:00:13]} 25. Rc1 {[%clk 0:02:01]}  Re5 {[%clk 0:00:12]} 26. Be4 {[%clk 0:01:30]}  Rxc5 {[%clk 0:00:12]} 27. Rxc5 {[%clk 0:01:29]}  Nxc5 {[%clk 0:00:12]} 28. Bxc6 {[%clk 0:01:30]}  bxc6 {[%clk 0:00:13]} 29. Bxa5 {[%clk 0:01:31]}  Kf8 {[%clk 0:00:12]} 30. Ke2 {[%clk 0:01:30]}  Ke7 {[%clk 0:00:12]} 31. Bb4 {[%clk 0:01:30]}  Kd6 {[%clk 0:00:12]} 32. a4 {[%clk 0:01:31]}  Kd5 {[%clk 0:00:12]} 33. a5 {[%clk 0:01:27]}  Na6 {[%clk 0:00:08]} 34. Ba3 {[%clk 0:01:26]}  Kc4 {[%clk 0:00:08]} 35. Kd2 {[%clk 0:01:26]}  Kb5 {[%clk 0:00:06]} 36. Bf8 {[%clk 0:01:26]}  g6 {[%clk 0:00:05]} 37. b4 {[%clk 0:01:27]}  Nxb4 {[%clk 0:00:04]} 38. Bxb4 {[%clk 0:01:26]}  Kxb4 {[%clk 0:00:04]} 39. a6 {[%clk 0:01:27]}  c5 {[%clk 0:00:05]} 40. a7 {[%clk 0:01:27]}  c4 {[%clk 0:00:06]} 41. a8=Q {[%clk 0:01:28]}  c3+ {[%clk 0:00:07]} 42. Kd3 {[%clk 0:01:28]} 1-0


[Site "https://www.chess.com"]

[Event "Titled Tuesday Blitz November 15 Late 2022"]
[White "Radovanovic, Dusan"]
[Black "Guz, Ari"]
[WhiteFideId "926868"]
[BlackFideId "2825759"]
[WhiteElo "2341"]
[BlackElo "2205"]
[Result "0-1"]
[Round "05"]
[TimeControl "180+1"]
[Date "2022.11.16"]
[WhiteClock "0:00:15"]
[BlackClock "0:00:15"]

1. e4 {[%clk 0:03:00]}  Nf6 {[%clk 0:02:49]} 2. e5 {[%clk 0:02:59]}  Nd5 {[%clk 0:02:48]} 3. d4 {[%clk 0:02:58]}  d6 {[%clk 0:02:47]} 4. Bc4 {[%clk 0:02:58]}  Nb6 {[%clk 0:02:47]} 5. Bb3 {[%clk 0:02:58]}  d5 {[%clk 0:02:47]} 6. c3 {[%clk 0:02:54]}  Bf5 {[%clk 0:02:47]} 7. Ne2 {[%clk 0:02:48]}  e6 {[%clk 0:02:45]} 8. Nd2 {[%clk 0:02:43]}  c5 {[%clk 0:02:43]} 9. Nf3 {[%clk 0:02:43]}  Nc6 {[%clk 0:02:43]} 10. h3 {[%clk 0:02:40]}  Be7 {[%clk 0:02:42]} 11. O-O {[%clk 0:02:37]}  O-O {[%clk 0:02:39]} 12. Be3 {[%clk 0:02:37]}  cxd4 {[%clk 0:02:34]} 13. Nexd4 {[%clk 0:02:35]}  Bg6 {[%clk 0:02:12]} 14. Re1 {[%clk 0:02:27]}  Rc8 {[%clk 0:02:07]} 15. a4 {[%clk 0:02:16]}  Na5 {[%clk 0:02:05]} 16. Bc2 {[%clk 0:02:12]}  Nbc4 {[%clk 0:01:54]} 17. Bxg6 {[%clk 0:02:10]}  hxg6 {[%clk 0:01:52]} 18. Bc1 {[%clk 0:02:05]}  Qb6 {[%clk 0:01:50]} 19. b3 {[%clk 0:01:53]}  Nxe5 {[%clk 0:01:48]} 20. Nxe5 {[%clk 0:01:48]}  Rxc3 {[%clk 0:01:48]} 21. Nd7 {[%clk 0:01:44]}  Qa6 {[%clk 0:01:42]} 22. Nxf8 {[%clk 0:01:42]}  Bxf8 {[%clk 0:01:38]} 23. Re3 {[%clk 0:01:29]}  Rc8 {[%clk 0:01:32]} 24. Bd2 {[%clk 0:01:23]}  Qb6 {[%clk 0:01:26]} 25. Bxa5 {[%clk 0:01:21]}  Qxa5 {[%clk 0:01:27]} 26. Rc1 {[%clk 0:01:18]}  Rd8 {[%clk 0:01:27]} 27. Qd3 {[%clk 0:01:12]}  a6 {[%clk 0:01:23]} 28. h4 {[%clk 0:01:04]}  Be7 {[%clk 0:01:21]} 29. Rh3 {[%clk 0:01:03]}  e5 {[%clk 0:01:18]} 30. Ne2 {[%clk 0:00:57]}  e4 {[%clk 0:01:17]} 31. Qe3 {[%clk 0:00:52]}  Bf6 {[%clk 0:00:43]} 32. h5 {[%clk 0:00:49]}  g5 {[%clk 0:00:43]} 33. h6 {[%clk 0:00:49]}  g6 {[%clk 0:00:44]} 34. h7+ {[%clk 0:00:49]}  Kh8 {[%clk 0:00:44]} 35. Rd1 {[%clk 0:00:42]}  Qb4 {[%clk 0:00:40]} 36. Nd4 {[%clk 0:00:37]}  Rc8 {[%clk 0:00:38]} 37. Qd2 {[%clk 0:00:32]}  Qd6 {[%clk 0:00:33]} 38. Rc3 {[%clk 0:00:29]}  Rd8 {[%clk 0:00:31]} 39. g3 {[%clk 0:00:26]}  Kxh7 {[%clk 0:00:31]} 40. Kg2 {[%clk 0:00:25]}  Kg7 {[%clk 0:00:31]} 41. Rdc1 {[%clk 0:00:18]}  Qe5 {[%clk 0:00:27]} 42. Ne2 {[%clk 0:00:16]}  d4 {[%clk 0:00:24]} 43. Rc8 {[%clk 0:00:17]}  Rd7 {[%clk 0:00:22]} 44. R8c4 {[%clk 0:00:16]}  Qd5 {[%clk 0:00:18]} 45. b4 {[%clk 0:00:16]}  e3+ {[%clk 0:00:18]} 46. f3 {[%clk 0:00:17]}  exd2 {[%clk 0:00:18]} 47. R1c2 {[%clk 0:00:17]}  d3 {[%clk 0:00:19]} 48. Rd4 {[%clk 0:00:17]}  Bxd4 {[%clk 0:00:18]} 49. Rxd2 {[%clk 0:00:15]}  dxe2 {[%clk 0:00:19]} 50. g4 {[%clk 0:00:15]}  Qe5 {[%clk 0:00:15]} 0-1


[Site "https://www.chess.com"]

[Event "Titled Tuesday Blitz November 15 Late 2022"]
[White "Rangel, Daniel"]
[Black "Yurovskykh, Oleksandr"]
[WhiteFideId "2124475"]
[BlackFideId "14134020"]
[WhiteElo "2225"]
[BlackElo "2265"]
[Result "1-0"]
[Round "05"]
[TimeControl "180+1"]
[Date "2022.11.16"]
[WhiteClock "0:00:11"]
[BlackClock "0:00:19"]

1. c4 {[%clk 0:02:59]}  c6 {[%clk 0:02:54]} 2. d4 {[%clk 0:02:57]}  d5 {[%clk 0:02:55]} 3. Nc3 {[%clk 0:02:57]}  Nf6 {[%clk 0:02:52]} 4. cxd5 {[%clk 0:02:57]}  cxd5 {[%clk 0:02:51]} 5. Bf4 {[%clk 0:02:57]}  Nc6 {[%clk 0:02:51]} 6. e3 {[%clk 0:02:57]}  a6 {[%clk 0:02:49]} 7. Nf3 {[%clk 0:02:57]}  Bg4 {[%clk 0:02:49]} 8. Be2 {[%clk 0:02:56]}  e6 {[%clk 0:02:48]} 9. h3 {[%clk 0:02:55]}  Bh5 {[%clk 0:02:48]} 10. Ne5 {[%clk 0:02:54]}  Bxe2 {[%clk 0:02:42]} 11. Qxe2 {[%clk 0:02:52]}  Rc8 {[%clk 0:02:42]} 12. O-O {[%clk 0:02:50]}  Be7 {[%clk 0:02:40]} 13. a3 {[%clk 0:02:46]}  O-O {[%clk 0:02:34]} 14. Rac1 {[%clk 0:02:43]}  Nxe5 {[%clk 0:02:25]} 15. Bxe5 {[%clk 0:02:43]}  Qd7 {[%clk 0:02:25]} 16. Bxf6 {[%clk 0:02:37]}  Bxf6 {[%clk 0:02:26]} 17. Rc2 {[%clk 0:02:37]}  Rc6 {[%clk 0:02:26]} 18. Rfc1 {[%clk 0:02:35]}  Rfc8 {[%clk 0:02:22]} 19. Na2 {[%clk 0:02:32]}  Be7 {[%clk 0:02:20]} 20. Qd3 {[%clk 0:02:23]}  g6 {[%clk 0:02:19]} 21. Rxc6 {[%clk 0:02:20]}  Rxc6 {[%clk 0:02:19]} 22. Rc3 {[%clk 0:02:10]}  Kf8 {[%clk 0:02:05]} 23. g3 {[%clk 0:02:09]}  Ke8 {[%clk 0:02:03]} 24. Kg2 {[%clk 0:02:09]}  h5 {[%clk 0:02:03]} 25. h4 {[%clk 0:02:08]}  Kd8 {[%clk 0:02:02]} 26. Qc2 {[%clk 0:02:01]}  Rxc3 {[%clk 0:01:57]} 27. Nxc3 {[%clk 0:02:00]}  Qc6 {[%clk 0:01:57]} 28. Qe2 {[%clk 0:01:42]}  Bxa3 {[%clk 0:01:51]} 29. Qf3 {[%clk 0:01:07]}  Bxb2 {[%clk 0:01:49]} 30. Nd1 {[%clk 0:01:02]}  Ba3 {[%clk 0:01:36]} 31. Qxf7 {[%clk 0:01:02]}  Be7 {[%clk 0:01:27]} 32. Qxg6 {[%clk 0:00:59]}  a5 {[%clk 0:01:26]} 33. Qxh5 {[%clk 0:00:52]}  a4 {[%clk 0:01:16]} 34. Qf3 {[%clk 0:00:35]}  a3 {[%clk 0:01:11]} 35. Qe2 {[%clk 0:00:26]}  b5 {[%clk 0:01:11]} 36. h5 {[%clk 0:00:23]}  b4 {[%clk 0:01:05]} 37. h6 {[%clk 0:00:22]}  b3 {[%clk 0:00:50]} 38. h7 {[%clk 0:00:22]}  Qe8 {[%clk 0:00:50]} 39. Qa6 {[%clk 0:00:19]}  Bf6 {[%clk 0:00:47]} 40. Qb6+ {[%clk 0:00:16]}  Ke7 {[%clk 0:00:43]} 41. Qxb3 {[%clk 0:00:17]}  Kf7 {[%clk 0:00:36]} 42. Qxa3 {[%clk 0:00:16]}  Qh8 {[%clk 0:00:37]} 43. Qa7+ {[%clk 0:00:15]}  Be7 {[%clk 0:00:37]} 44. Qd7 {[%clk 0:00:15]}  Qxh7 {[%clk 0:00:38]} 45. Qc7 {[%clk 0:00:15]}  Qe4+ {[%clk 0:00:38]} 46. Kh2 {[%clk 0:00:13]}  Qh7+ {[%clk 0:00:38]} 47. Kg2 {[%clk 0:00:13]}  Qd3 {[%clk 0:00:38]} 48. Qf4+ {[%clk 0:00:12]}  Ke8 {[%clk 0:00:38]} 49. Qf3 {[%clk 0:00:13]}  Qd2 {[%clk 0:00:36]} 50. Kf1 {[%clk 0:00:11]}  Qc2 {[%clk 0:00:36]} 51. Qe2 {[%clk 0:00:11]}  Qe4 {[%clk 0:00:37]} 52. f3 {[%clk 0:00:10]}  Qb1 {[%clk 0:00:37]} 53. Kg2 {[%clk 0:00:10]}  Qh7 {[%clk 0:00:37]} 54. Nf2 {[%clk 0:00:10]}  Bd6 {[%clk 0:00:36]} 55. Ng4 {[%clk 0:00:09]}  Qb1 {[%clk 0:00:35]} 56. f4 {[%clk 0:00:09]}  Qe4+ {[%clk 0:00:35]} 57. Qf3 {[%clk 0:00:09]}  Qc2+ {[%clk 0:00:36]} 58. Nf2 {[%clk 0:00:10]}  Bb4 {[%clk 0:00:30]} 59. g4 {[%clk 0:00:11]}  Be1 {[%clk 0:00:30]} 60. g5 {[%clk 0:00:11]}  Kf8 {[%clk 0:00:29]} 61. Kg3 {[%clk 0:00:11]}  Kg7 {[%clk 0:00:26]} 62. Kg2 {[%clk 0:00:11]}  Qd2 {[%clk 0:00:26]} 63. Kf1 {[%clk 0:00:11]}  Bxf2 {[%clk 0:00:20]} 64. Qxf2 {[%clk 0:00:11]}  Qd1+ {[%clk 0:00:21]} 65. Kg2 {[%clk 0:00:11]}  Qg4+ {[%clk 0:00:21]} 66. Qg3 {[%clk 0:00:11]}  Qe2+ {[%clk 0:00:22]} 67. Kh3 {[%clk 0:00:12]}  Qh5+ {[%clk 0:00:22]} 68. Kg2 {[%clk 0:00:12]}  Qe2+ {[%clk 0:00:22]} 69. Kg1 {[%clk 0:00:13]}  Kg6 {[%clk 0:00:21]} 70. Qf2 {[%clk 0:00:11]}  Qd1+ {[%clk 0:00:21]} 71. Kg2 {[%clk 0:00:11]}  Qg4+ {[%clk 0:00:21]} 72. Kf1 {[%clk 0:00:11]}  Qd1+ {[%clk 0:00:21]} 73. Kg2 {[%clk 0:00:12]}  Qg4+ {[%clk 0:00:22]} 74. Kh2 {[%clk 0:00:12]}  Qh5+ {[%clk 0:00:20]} 75. Kg3 {[%clk 0:00:12]}  Kf5 {[%clk 0:00:19]} 76. Qc2# {[%clk 0:00:11]} 1-0


[Site "https://www.chess.com"]

[Event "Titled Tuesday Blitz November 15 Late 2022"]
[White "Rasulov, Vugar"]
[Black "Mr_Penings"]
[WhiteFideId "13402390"]
[WhiteElo "2509"]
[BlackElo "2672"]
[Result "0-1"]
[Round "05"]
[TimeControl "180+1"]
[Date "2022.11.15"]
[WhiteClock "0:00:58"]
[BlackClock "0:00:36"]

1. e4 {[%clk 0:03:00]}  c5 {[%clk 0:02:59]} 2. Nf3 {[%clk 0:03:01]}  e6 {[%clk 0:02:59]} 3. g3 {[%clk 0:03:00]}  Nc6 {[%clk 0:02:59]} 4. Bg2 {[%clk 0:03:00]}  Nf6 {[%clk 0:02:59]} 5. Qe2 {[%clk 0:02:57]}  d6 {[%clk 0:02:59]} 6. O-O {[%clk 0:02:57]}  Be7 {[%clk 0:02:58]} 7. Rd1 {[%clk 0:02:57]}  O-O {[%clk 0:02:56]} 8. d4 {[%clk 0:02:57]}  cxd4 {[%clk 0:02:56]} 9. Nxd4 {[%clk 0:02:58]}  Bd7 {[%clk 0:02:55]} 10. c4 {[%clk 0:02:56]}  Qc7 {[%clk 0:02:50]} 11. Nb5 {[%clk 0:02:50]}  Qb8 {[%clk 0:02:50]} 12. N1c3 {[%clk 0:02:50]}  a6 {[%clk 0:02:47]} 13. Nd4 {[%clk 0:02:50]}  Qc7 {[%clk 0:02:45]} 14. b3 {[%clk 0:02:44]}  Rfe8 {[%clk 0:02:44]} 15. Bb2 {[%clk 0:02:44]}  Bf8 {[%clk 0:02:44]} 16. Rac1 {[%clk 0:02:44]}  Ne5 {[%clk 0:02:37]} 17. f4 {[%clk 0:02:40]}  Ng6 {[%clk 0:02:37]} 18. h4 {[%clk 0:02:33]}  h5 {[%clk 0:02:35]} 19. Nf3 {[%clk 0:02:29]}  Ng4 {[%clk 0:02:30]} 20. Nh2 {[%clk 0:02:21]}  Qc5+ {[%clk 0:02:17]} 21. Kf1 {[%clk 0:02:10]}  Nxh2+ {[%clk 0:02:16]} 22. Ke1 {[%clk 0:02:10]}  Ng4 {[%clk 0:02:04]} 23. e5 {[%clk 0:02:09]}  Bc6 {[%clk 0:01:54]} 24. Bxc6 {[%clk 0:02:06]}  Qxc6 {[%clk 0:01:55]} 25. exd6 {[%clk 0:02:02]}  Bxd6 {[%clk 0:01:52]} 26. Ne4 {[%clk 0:02:02]}  Bb4+ {[%clk 0:01:49]} 27. Kf1 {[%clk 0:01:58]}  f5 {[%clk 0:01:44]} 28. Nf2 {[%clk 0:01:58]}  Rad8 {[%clk 0:01:31]} 29. Nxg4 {[%clk 0:01:47]}  hxg4 {[%clk 0:01:22]} 30. Kg1 {[%clk 0:01:43]}  Bc5+ {[%clk 0:01:12]} 31. Kh2 {[%clk 0:01:42]}  Kf7 {[%clk 0:01:05]} 32. Bc3 {[%clk 0:01:36]}  Qe4 {[%clk 0:00:58]} 33. Qf1 {[%clk 0:01:26]}  Rh8 {[%clk 0:00:50]} 34. Rxd8 {[%clk 0:01:16]}  Rxd8 {[%clk 0:00:49]} 35. b4 {[%clk 0:01:17]}  Be3 {[%clk 0:00:44]} 36. Re1 {[%clk 0:01:14]}  Rd3 {[%clk 0:00:44]} 37. h5 {[%clk 0:01:05]}  Nxf4 {[%clk 0:00:36]} 38. gxf4 {[%clk 0:01:00]}  Bxf4+ {[%clk 0:00:37]} 39. Kg1 {[%clk 0:00:58]}  Rg3+ {[%clk 0:00:37]} 40. Kf2 {[%clk 0:00:58]}  Qf3# {[%clk 0:00:36]} 0-1


[Site "https://www.chess.com"]

[Event "Titled Tuesday Blitz November 15 Late 2022"]
[White "Reprintsev, Alexander"]
[Black "Nugumanov, Bakhtiyar"]
[WhiteFideId "14100541"]
[BlackFideId "13701797"]
[WhiteElo "2230"]
[BlackElo "2287"]
[Result "0-1"]
[Round "05"]
[TimeControl "180+1"]
[Date "2022.11.16"]
[WhiteClock "0:01:49"]
[BlackClock "0:00:55"]

1. e4 {[%clk 0:02:58]}  c5 {[%clk 0:02:59]} 2. b3 {[%clk 0:02:57]}  e6 {[%clk 0:02:49]} 3. Qe2 {[%clk 0:02:56]}  Nc6 {[%clk 0:02:35]} 4. Bb2 {[%clk 0:02:52]}  Nf6 {[%clk 0:02:35]} 5. e5 {[%clk 0:02:51]}  Nd5 {[%clk 0:02:35]} 6. g3 {[%clk 0:02:51]}  Be7 {[%clk 0:02:32]} 7. Bg2 {[%clk 0:02:50]}  O-O {[%clk 0:02:33]} 8. c4 {[%clk 0:02:49]}  Ndb4 {[%clk 0:02:21]} 9. d3 {[%clk 0:02:49]}  Nd4 {[%clk 0:02:04]} 10. Bxd4 {[%clk 0:02:48]}  cxd4 {[%clk 0:02:05]} 11. a3 {[%clk 0:02:48]}  Qa5 {[%clk 0:02:01]} 12. Kf1 {[%clk 0:02:47]}  Nc6 {[%clk 0:01:56]} 13. h4 {[%clk 0:02:43]}  Qxe5 {[%clk 0:01:54]} 14. Bxc6 {[%clk 0:02:40]}  Qxe2+ {[%clk 0:01:54]} 15. Nxe2 {[%clk 0:02:41]}  dxc6 {[%clk 0:01:51]} 16. Nxd4 {[%clk 0:02:37]}  Bf6 {[%clk 0:01:51]} 17. Nc2 {[%clk 0:02:38]}  Bxa1 {[%clk 0:01:50]} 18. Nxa1 {[%clk 0:02:38]}  Rd8 {[%clk 0:01:50]} 19. Ke2 {[%clk 0:02:38]}  e5 {[%clk 0:01:50]} 20. f3 {[%clk 0:02:37]}  Bf5 {[%clk 0:01:49]} 21. Rd1 {[%clk 0:02:37]}  Rd6 {[%clk 0:01:46]} 22. g4 {[%clk 0:02:36]}  Be6 {[%clk 0:01:34]} 23. Nc3 {[%clk 0:02:36]}  f5 {[%clk 0:01:34]} 24. g5 {[%clk 0:02:34]}  Rad8 {[%clk 0:01:33]} 25. Nc2 {[%clk 0:02:33]}  f4 {[%clk 0:01:31]} 26. Ne4 {[%clk 0:02:33]}  R6d7 {[%clk 0:01:30]} 27. Nc5 {[%clk 0:02:32]}  Re7 {[%clk 0:01:30]} 28. Nxe6 {[%clk 0:02:24]}  Rxe6 {[%clk 0:01:31]} 29. Kd2 {[%clk 0:02:20]}  e4 {[%clk 0:01:25]} 30. fxe4 {[%clk 0:02:13]}  Rxe4 {[%clk 0:01:23]} 31. Rf1 {[%clk 0:02:14]}  f3 {[%clk 0:01:23]} 32. Rxf3 {[%clk 0:02:07]}  Rxh4 {[%clk 0:01:23]} 33. d4 {[%clk 0:02:07]}  Rg4 {[%clk 0:01:22]} 34. Rf5 {[%clk 0:02:05]}  Re8 {[%clk 0:01:18]} 35. Kc3 {[%clk 0:02:00]}  Rg3+ {[%clk 0:01:16]} 36. Kb4 {[%clk 0:01:59]}  g6 {[%clk 0:01:16]} 37. Ra5 {[%clk 0:01:56]}  a6 {[%clk 0:01:11]} 38. d5 {[%clk 0:01:53]}  Rxg5 {[%clk 0:01:00]} 39. dxc6 {[%clk 0:01:53]}  Rxa5 {[%clk 0:00:59]} 40. Kxa5 {[%clk 0:01:54]}  bxc6 {[%clk 0:01:00]} 41. Nd4 {[%clk 0:01:52]}  c5 {[%clk 0:00:57]} 42. Nf3 {[%clk 0:01:49]}  Re3 {[%clk 0:00:56]} 43. Ng5 {[%clk 0:01:49]}  h6 {[%clk 0:00:55]} 0-1


[Site "https://www.chess.com"]